fUST/lending_fUST_20250708
["ID","MTS","AMOUNT","RATE_DAILY","PERIOD"]
[370383301,1751988647063,-460.0,0.00019726,2]
[370383302,1751988647073,-1397.65,0.00019726,2]
[370383303,1751988647083,-460.0,0.00019726,2]
[370383304,1751988647093,-460.0,0.00019726,2]
[370383305,1751988647103,-460.0,0.00019726,2]
[370383306,1751988647113,-1921.6,0.00019726,2]
[370383307,1751988647124,-460.0,0.00019726,2]
[370383308,1751988647134,-1435.95,0.00019726,2]
[370383309,1751988647144,-460.0,0.00019726,2]
[370383310,1751988647154,-460.0,0.00019726,2]
[370383311,1751988647164,-460.0,0.00019726,2]
[370383312,1751988647173,-460.0,0.00019726,2]
[370383313,1751988647183,-460.0,0.00019726,2]
[370383314,1751988647197,-460.0,0.00019726,2]
[370383315,1751988647207,-460.0,0.00019726,2]
[370383316,1751988647217,-1026.07,0.00019726,2]
[370383317,1751988647227,-460.0,0.00019726,2]
[370383318,1751988647237,-490.93,0.00019726,2]
[370383319,1751988647247,-460.0,0.00019726,2]
[370383320,1751988647257,-758.19,0.00019726,2]
[370383321,1751988647266,-514.09306818,0.00019726,2]
[370383322,1751988647279,-460.0,0.00019726,2]
[370383323,1751988647288,-838.86,0.00019726,2]
[370383324,1751988647297,-5127.49,0.00019726,2]
[370383325,1751988647307,-460.0,0.00019726,2]
[370383326,1751988647316,-460.0,0.00019726,2]
[370383327,1751988647326,-460.0,0.00019726,2]
[370383328,1751988647335,-901.2,0.00019726,2]
[370383329,1751988647345,-862.21,0.00019726,2]
[370383330,1751988647355,-460.0,0.00019726,2]
[370383331,1751988647364,-2753.27,0.00019726,2]
[370383332,1751988647374,-835.38,0.00019726,2]
[370383333,1751988647383,-460.0,0.00019726,2]
[370383334,1751988647392,-658.66,0.00019726,2]
[370383335,1751988647402,-460.0,0.00019726,2]
[370383336,1751988647412,-460.0,0.00019726,2]
[370383337,1751988647422,-3833.71,0.00019726,2]
[370383338,1751988647432,-460.0,0.00019726,2]
[370383339,1751988647443,-460.0,0.00019726,2]
[370383340,1751988647453,-460.0,0.00019726,2]
[370383341,1751988647463,-646.83,0.00019726,2]
[370383342,1751988647472,-724.43,0.00019726,2]
[370383343,1751988647482,-460.0,0.00019726,2]
[370383344,1751988647491,-673.37,0.00019726,2]
[370383345,1751988647501,-460.0,0.00019726,2]
[370383346,1751988647511,-460.0,0.00019726,2]
[370383347,1751988647520,-664.63,0.00019726,2]
[370383348,1751988647537,-1708.39,0.00019726,2]
[370383349,1751988647547,-460.0,0.00019726,2]
[370383350,1751988647557,-597.74,0.00019726,2]
[370383351,1751988647566,-844.71,0.00019726,2]
[370383352,1751988647576,-2473.14,0.00019726,2]
[370383353,1751988647586,-487.61,0.00019726,2]
[370383354,1751988647596,-646.14,0.00019726,2]
[370383355,1751988647606,-460.0,0.00019726,2]
[370383356,1751988647615,-1506.99,0.00019726,2]
[370383357,1751988647625,-460.0,0.00019726,2]
[370383358,1751988647635,-460.0,0.00019726,2]
[370383359,1751988647645,-460.0,0.00019726,2]
[370383360,1751988647654,-460.0,0.00019726,2]
[370383361,1751988647664,-460.0,0.00019726,2]
[370383362,1751988647674,-2788.13,0.00019726,2]
[370383363,1751988647683,-460.0,0.00019726,2]
[370383364,1751988647695,-460.0,0.00019726,2]
[370383365,1751988647704,-460.0,0.00019726,2]
[370383366,1751988647715,-688.11,0.00019726,2]
[370383367,1751988647725,-460.0,0.00019726,2]
[370383368,1751988647735,-460.0,0.00019726,2]
[370383369,1751988647744,-460.0,0.00019726,2]
[370383370,1751988647754,-460.0,0.00019726,2]
[370383371,1751988647764,-460.0,0.00019726,2]
[370383372,1751988647774,-460.0,0.00019726,2]
[370383373,1751988647783,-460.0,0.00019726,2]
[370383374,1751988647793,-460.0,0.00019726,2]
[370383375,1751988647803,-752.17,0.00019726,2]
[370383376,1751988647812,-707.53,0.00019726,2]
[370383377,1751988647822,-694.91,0.00019726,2]
[370383378,1751988647831,-510.12327461,0.00019726,2]
[370383379,1751988647841,-460.0,0.00019726,2]
[370383380,1751988647851,-460.0,0.00019726,2]
[370383381,1751988647861,-460.0,0.00019726,2]
[370383382,1751988647871,-2901.31,0.00019726,2]
[370383383,1751988647880,-460.0,0.00019726,2]
[370383384,1751988647890,-460.0,0.00019726,2]
[370383385,1751988647899,-605.75,0.00019726,2]
[370383386,1751988647909,-460.0,0.00019726,2]
[370383387,1751988647918,-460.0,0.00019726,2]
[370383388,1751988647928,-1269.5,0.00019726,2]
[370383389,1751988647939,-460.0,0.00019726,2]
[370383390,1751988647949,-470.98444585,0.00019726,2]
[370383391,1751988647959,-460.0,0.00019726,2]
[370383392,1751988647969,-5408.87,0.00019726,2]
[370383393,1751988647980,-4052.16,0.00019726,2]
[370383394,1751988648065,-723.51,0.00019726,2]
[370383395,1751988648076,-460.0,0.00019726,2]
[370383396,1751988648086,-460.0,0.00019726,2]
[370383397,1751988648096,-460.0,0.00019726,2]
[370383398,1751988648107,-460.0,0.00019726,2]
[370383399,1751988648117,-2441.44,0.00019726,2]
[370383400,1751988648127,-460.0,0.00019726,2]
[370383401,1751988648137,-1137.52,0.00019726,2]
[370383402,1751988648147,-681.91,0.00019726,2]
[370383403,1751988648156,-510.15,0.00019726,2]
[370383404,1751988648165,-776.58,0.00019726,2]
[370383405,1751988648175,-1009.01,0.00019726,2]
[370383406,1751988648184,-460.0,0.00019726,2]
[370383407,1751988648195,-1454.34,0.00019726,2]
[370383408,1751988648204,-677.21,0.00019726,2]
[370383409,1751988648214,-2559.5,0.00019726,2]
[370383410,1751988648224,-960.91,0.00019726,2]
[370383411,1751988648234,-510.04,0.00019726,2]
[370383412,1751988648244,-460.0,0.00019726,2]
[370383413,1751988648253,-3140.82,0.00019726,2]
[370383414,1751988648263,-150.0,0.00019728,2]
[370383415,1751988648273,-500.0,0.00019729,2]
[370383416,1751988648283,-2000.0,0.000198,5]
[370383417,1751988648293,-151.0,0.000198,2]
[370383418,1751988648302,-500.0,0.00019823,2]
[370383419,1751988648312,-6000.12112762,0.00019866,2]
[370383420,1751988648322,-151.0,0.000199,2]
[370383421,1751988648332,-151.0,0.000199,2]
[370383422,1751988648342,-500.0,0.00019916,2]
[370383423,1751988648351,-657482.73986,0.00019999,2]
[370383424,1751988648361,-460.0,0.0002,2]
[370383425,1751988648370,-460.0,0.0002,2]
[370383426,1751988648379,-460.0,0.0002,2]
[370383427,1751988648388,-267.9336596,0.0002,2]
[370383428,1751988648398,-310.71229955,0.0002,2]
[370383429,1751988648407,-460.0,0.0002,2]
[370383430,1751988648417,-460.0,0.0002,2]
[370383431,1751988648426,-460.0,0.0002,2]
[370383432,1751988648436,-1027.44,0.0002,2]
[370383433,1751988648446,-460.0,0.0002,2]
[370383434,1751988648456,-460.0,0.0002,2]
[370383435,1751988648466,-460.0,0.0002,2]
[370383436,1751988648475,-460.0,0.0002,2]
[370383437,1751988648485,-460.0,0.0002,2]
[370383438,1751988648494,-863.55,0.0002,2]
[370383439,1751988648504,-460.0,0.0002,2]
[370383440,1751988648513,-460.0,0.0002,2]
[370383441,1751988648523,-592.45,0.0002,2]
[370383442,1751988648533,-460.0,0.0002,2]
[370383443,1751988648545,-512.5,0.0002,2]
[370383444,1751988648554,-941.19,0.0002,2]
[370383445,1751988648564,-460.0,0.0002,2]
[370383446,1751988648574,-460.0,0.0002,2]
[370383447,1751988648588,-460.0,0.0002,2]
[370383448,1751988648597,-460.0,0.0002,2]
[370383449,1751988648608,-460.0,0.0002,2]
[370383450,1751988648617,-460.0,0.0002,2]
[370383451,1751988648628,-460.0,0.0002,2]
[370383452,1751988648637,-460.0,0.0002,2]
[370383453,1751988648646,-460.0,0.0002,2]
[370383454,1751988648656,-898.19,0.0002,2]
[370383455,1751988648665,-468.58,0.0002,2]
[370383456,1751988648675,-811.62,0.0002,2]
[370383457,1751988648684,-862.49,0.0002,2]
[370383458,1751988648695,-460.0,0.0002,2]
[370383459,1751988648705,-460.0,0.0002,2]
[370383460,1751988648714,-510.43,0.0002,2]
[370383461,1751988648724,-460.0,0.0002,2]
[370383462,1751988648733,-460.0,0.0002,2]
[370383463,1751988648743,-1555.07,0.0002,2]
[370383464,1751988648752,-460.0,0.0002,2]
[370383465,1751988648761,-460.0,0.0002,2]
[370383466,1751988648771,-855.52,0.0002,2]
[370383467,1751988648780,-284.31746798,0.0002,2]
[370383468,1751988648789,-460.0,0.0002,2]
[370383469,1751988648799,-545.34,0.0002,2]
[370383470,1751988648809,-633.51,0.0002,2]
[370383471,1751988648818,-460.0,0.0002,2]
[370383472,1751988648828,-460.0,0.0002,2]
[370383473,1751988648837,-219.41683556,0.0002,2]
[370383474,1751988648846,-1397.65,0.0002,2]
[370383475,1751988648856,-460.0,0.0002,2]
[370383476,1751988648866,-460.0,0.0002,2]
[370383477,1751988648876,-460.0,0.0002,2]
[370383478,1751988648885,-1921.6,0.0002,2]
[370383479,1751988648895,-1435.95,0.0002,2]
[370383480,1751988648904,-460.0,0.0002,2]
[370383481,1751988648914,-460.0,0.0002,2]
[370383482,1751988648923,-416.38178185,0.0002,2]
[370383483,1751988648933,-177.41322904,0.0002,2]
[370383484,1751988648945,-460.0,0.0002,2]
[370383485,1751988648955,-1026.07,0.0002,2]
[370383486,1751988648964,-490.93,0.0002,2]
[370383487,1751988648974,-460.0,0.0002,2]
[370383488,1751988648983,-758.19,0.0002,2]
[370383489,1751988648992,-460.0,0.0002,2]
[370383490,1751988649002,-838.86,0.0002,2]
[370383491,1751988649012,-5127.49,0.0002,2]
[370383492,1751988649021,-460.0,0.0002,2]
[370383493,1751988649031,-460.0,0.0002,2]
[370383494,1751988649040,-901.2,0.0002,2]
[370383495,1751988649050,-236.64201642,0.0002,2]
[370383496,1751988649059,-862.21,0.0002,2]
[370383497,1751988649069,-460.0,0.0002,2]
[370383498,1751988649079,-2753.27,0.0002,2]
[370383499,1751988649088,-835.38,0.0002,2]
[370383500,1751988649098,-460.0,0.0002,2]
[370383501,1751988649107,-658.66,0.0002,2]
[370383502,1751988649117,-460.0,0.0002,2]
[370383503,1751988649126,-460.0,0.0002,2]
[370383504,1751988649136,-3833.71,0.0002,2]
[370383505,1751988649147,-460.0,0.0002,2]
[370383506,1751988649156,-460.0,0.0002,2]
[370383507,1751988649166,-460.0,0.0002,2]
[370383508,1751988649176,-646.83,0.0002,2]
[370383509,1751988649185,-724.43,0.0002,2]
[370383510,1751988649197,-460.0,0.0002,2]
[370383511,1751988649207,-673.37,0.0002,2]
[370383512,1751988649217,-460.0,0.0002,2]
[370383513,1751988649227,-460.0,0.0002,2]
[370383514,1751988649237,-664.63,0.0002,2]
[370383515,1751988649246,-1708.39,0.0002,2]
[370383516,1751988649256,-460.0,0.0002,2]
[370383517,1751988649265,-597.74,0.0002,2]
[370383518,1751988649275,-844.71,0.0002,2]
[370383519,1751988649285,-2473.14,0.0002,2]
[370383520,1751988649295,-646.14,0.0002,2]
[370383521,1751988649304,-487.61,0.0002,2]
[370383522,1751988649314,-460.0,0.0002,2]
[370383523,1751988649324,-1506.99,0.0002,2]
[370383524,1751988649333,-460.0,0.0002,2]
[370383525,1751988649343,-460.0,0.0002,2]
[370383526,1751988649352,-460.0,0.0002,2]
[370383527,1751988649361,-2788.13,0.0002,2]
[370383528,1751988649370,-460.0,0.0002,2]
[370383529,1751988649379,-460.0,0.0002,2]
[370383530,1751988649389,-267.94857808,0.0002,2]
[370383531,1751988649399,-7777.0,0.0002,7]
[370383532,1751988649408,-688.11,0.0002,2]
[370383533,1751988649418,-460.0,0.0002,2]
[370383534,1751988649428,-460.0,0.0002,2]
[370383535,1751988649437,-460.0,0.0002,2]
[370383536,1751988649450,-460.0,0.0002,2]
[370383537,1751988649459,-460.0,0.0002,2]
[370383538,1751988649468,-460.0,0.0002,2]
[370383539,1751988649477,-460.0,0.0002,2]
[370383540,1751988649487,-752.17,0.0002,2]
[370383541,1751988649496,-707.53,0.0002,2]
[370383542,1751988649505,-694.91,0.0002,2]
[370383543,1751988649515,-460.0,0.0002,2]
[370383544,1751988649524,-460.0,0.0002,2]
[370383545,1751988649535,-460.0,0.0002,2]
[370383546,1751988649544,-2901.31,0.0002,2]
[370383547,1751988649554,-460.0,0.0002,2]
[370383548,1751988649564,-460.0,0.0002,2]
[370383549,1751988649573,-605.75,0.0002,2]
[370383550,1751988649582,-460.0,0.0002,2]
[370383551,1751988649591,-460.0,0.0002,2]
[370383552,1751988649601,-1269.5,0.0002,2]
[370383553,1751988649611,-460.0,0.0002,2]
[370383554,1751988649620,-460.0,0.0002,2]
[370383555,1751988649629,-5408.87,0.0002,2]
[370383556,1751988649639,-4052.16,0.0002,2]
[370383557,1751988649648,-723.51,0.0002,2]
[370383558,1751988649658,-460.0,0.0002,2]
[370383559,1751988649667,-460.51093071,0.0002,2]
[370383560,1751988649676,-460.0,0.0002,2]
[370383561,1751988649685,-460.0,0.0002,2]
[370383562,1751988649697,-2441.44,0.0002,2]
[370383563,1751988649707,-1137.52,0.0002,2]
[370383564,1751988649717,-460.0,0.0002,2]
[370383565,1751988649726,-681.91,0.0002,2]
[370383566,1751988649737,-510.15,0.0002,2]
[370383567,1751988649746,-776.58,0.0002,2]
[370383568,1751988649756,-1009.01,0.0002,2]
[370383569,1751988649765,-460.0,0.0002,2]
[370383570,1751988649774,-1454.34,0.0002,2]
[370383571,1751988649783,-677.21,0.0002,2]
[370383572,1751988649792,-2559.5,0.0002,2]
[370383573,1751988649802,-960.91,0.0002,2]
[370383574,1751988649811,-510.04,0.0002,2]
[370383575,1751988649820,-460.0,0.0002,2]
[370383576,1751988649830,-3140.82,0.0002,2]
[370383577,1751988649839,-500.0,0.0002001,2]
[370383578,1751988649848,-256.15863632,0.00020063,2]
[370383579,1751988649858,-500.0,0.00020103,2]
[370383580,1751988649867,-6000.12112762,0.00020107,2]
[370383581,1751988649877,-1133.26,0.00020133,3]
[370383582,1751988649886,-566.64,0.00020133,3]
[370383583,1751988649896,-377.76,0.00020133,3]
[370383584,1751988649906,-229.664924,0.00020187,2]
[370383585,1751988649915,-500.0,0.00020197,2]
[370383586,1751988649925,-151.0,0.000202,3]
[370383587,1751988649935,-1000.0,0.00020218,2]
[370383588,1751988649947,-848.40570879,0.00020263,2]
[370383589,1751988649956,-230.51100374,0.00020263,2]
[370383590,1751988649967,-837.89306043,0.00020263,2]
[370383591,1751988649977,-160.0,0.00020263,2]
[370383592,1751988649987,-214.10276668,0.00020263,2]
[370383593,1751988649996,-160.0,0.00020263,2]
[370383594,1751988650006,-12586.7184932,0.00020263,2]
[370383595,1751988650015,-215.2437778,0.00020263,2]
[370383596,1751988650025,-500.0,0.00020265,2]
[370383597,1751988650035,-1500.0,0.00020268,2]
[370383598,1751988650044,-1004.79287362,0.00020268,2]
[370383599,1751988650055,-1011.87995822,0.00020268,2]
[370383600,1751988650064,-151.0,0.00020273,2]
[370383601,1751988650073,-151.0,0.00020273,2]
[370383602,1751988650083,-460.0,0.00020273,2]
[370383603,1751988650093,-151.0,0.00020273,2]
[370383604,1751988650102,-151.0,0.00020273,2]
[370383605,1751988650112,-460.0,0.00020273,2]
[370383606,1751988650122,-465.54,0.00020273,2]
[370383607,1751988650131,-460.0,0.00020273,2]
[370383608,1751988650142,-460.0,0.00020273,2]
[370383609,1751988650151,-1027.44,0.00020273,2]
[370383610,1751988650161,-460.0,0.00020273,2]
[370383611,1751988650170,-460.0,0.00020273,2]
[370383612,1751988650180,-460.0,0.00020273,2]
[370383613,1751988650190,-460.0,0.00020273,2]
[370383614,1751988650200,-863.55,0.00020273,2]
[370383615,1751988650209,-460.0,0.00020273,2]
[370383616,1751988650219,-460.0,0.00020273,2]
[370383617,1751988650229,-592.45,0.00020273,2]
[370383618,1751988650239,-460.0,0.00020273,2]
[370383619,1751988650248,-512.5,0.00020273,2]
[370383620,1751988650258,-941.19,0.00020273,2]
[370383621,1751988650268,-460.0,0.00020273,2]
[370383622,1751988650278,-500.0,0.00020273,2]
[370383623,1751988650288,-460.0,0.00020273,2]
[370383624,1751988650298,-460.0,0.00020273,2]
[370383625,1751988650308,-460.0,0.00020273,2]
[370383626,1751988650318,-460.0,0.00020273,2]
[370383627,1751988650327,-460.0,0.00020273,2]
[370383628,1751988650338,-460.0,0.00020273,2]
[370383629,1751988650347,-898.19,0.00020273,2]
[370383630,1751988650356,-468.58,0.00020273,2]
[370383631,1751988650367,-811.62,0.00020273,2]
[370383632,1751988650376,-862.49,0.00020273,2]
[370383633,1751988650385,-212.85,0.00020273,2]
[370383634,1751988650396,-460.0,0.00020273,2]
[370383635,1751988650405,-510.43,0.00020273,2]
[370383636,1751988650415,-460.0,0.00020273,2]
[370383637,1751988650424,-561.0,0.00020273,2]
[370383638,1751988650433,-1555.07,0.00020273,2]
[370383639,1751988650444,-460.0,0.00020273,2]
[370383640,1751988650453,-460.0,0.00020273,2]
[370383641,1751988650463,-855.52,0.00020273,2]
[370383642,1751988650472,-460.0,0.00020273,2]
[370383643,1751988650482,-545.34,0.00020273,2]
[370383644,1751988650492,-633.51,0.00020273,2]
[370383645,1751988650501,-460.0,0.00020273,2]
[370383646,1751988650511,-460.0,0.00020273,2]
[370383647,1751988650520,-1397.65,0.00020273,2]
[370383648,1751988650532,-460.0,0.00020273,2]
[370383649,1751988650544,-460.0,0.00020273,2]
[370383650,1751988650554,-339.99423201,0.00020273,2]
[370383651,1751988650563,-1921.6,0.00020273,2]
[370383652,1751988650575,-1435.95,0.00020273,2]
[370383653,1751988650584,-542.013902,0.00020273,2]
[370383654,1751988650594,-460.0,0.00020273,2]
[370383655,1751988650603,-460.0,0.00020273,2]
[370383656,1751988650615,-1026.07,0.00020273,2]
[370383657,1751988650625,-490.93,0.00020273,2]
[370383658,1751988650636,-576.67583942,0.00020273,2]
[370383659,1751988650646,-758.19,0.00020273,2]
[370383660,1751988650655,-460.0,0.00020273,2]
[370383661,1751988650665,-838.86,0.00020273,2]
[370383662,1751988650674,-5127.49,0.00020273,2]
[370383663,1751988650684,-460.0,0.00020273,2]
[370383664,1751988650696,-460.0,0.00020273,2]
[370383665,1751988650706,-901.2,0.00020273,2]
[370383666,1751988650715,-862.21,0.00020273,2]
[370383667,1751988650725,-460.0,0.00020273,2]
[370383668,1751988650736,-2753.27,0.00020273,2]
[370383669,1751988650746,-835.38,0.00020273,2]
[370383670,1751988650756,-460.0,0.00020273,2]
[370383671,1751988650765,-658.66,0.00020273,2]
[370383672,1751988650775,-460.0,0.00020273,2]
[370383673,1751988650785,-460.0,0.00020273,2]
[370383674,1751988650795,-3833.71,0.00020273,2]
[370383675,1751988650806,-460.0,0.00020273,2]
[370383676,1751988650816,-460.0,0.00020273,2]
[370383677,1751988650826,-460.0,0.00020273,2]
[370383679,1751988650836,-646.83,0.00020273,2]
[370383680,1751988650846,-460.0,0.00020273,2]
[370383681,1751988650857,-724.43,0.00020273,2]
[370383682,1751988650867,-673.37,0.00020273,2]
[370383683,1751988650876,-460.0,0.00020273,2]
[370383684,1751988650886,-460.0,0.00020273,2]
[370383685,1751988650895,-664.63,0.00020273,2]
[370383686,1751988650905,-1708.39,0.00020273,2]
[370383687,1751988650915,-460.0,0.00020273,2]
[370383688,1751988650925,-597.74,0.00020273,2]
[370383689,1751988650935,-844.71,0.00020273,2]
[370383690,1751988650946,-2473.14,0.00020273,2]
[370383691,1751988650956,-646.14,0.00020273,2]
[370383692,1751988650966,-487.61,0.00020273,2]
[370383693,1751988650976,-1506.99,0.00020273,2]
[370383694,1751988650985,-460.0,0.00020273,2]
[370383695,1751988650995,-460.0,0.00020273,2]
[370383696,1751988651005,-460.0,0.00020273,2]
[370383697,1751988651015,-460.0,0.00020273,2]
[370383698,1751988651025,-2788.13,0.00020273,2]
[370383699,1751988651035,-460.0,0.00020273,2]
[370383700,1751988651045,-688.11,0.00020273,2]
[370383701,1751988651055,-460.0,0.00020273,2]
[370383702,1751988651065,-540.0,0.00020273,2]
[370383703,1751988651075,-596.35705903,0.00020273,2]
[370383704,1751988651085,-460.0,0.00020273,2]
[370383705,1751988651095,-460.0,0.00020273,2]
[370383706,1751988651104,-460.0,0.00020273,2]
[370383707,1751988651114,-752.17,0.00020273,2]
[370383708,1751988651124,-460.0,0.00020273,2]
[370383709,1751988651133,-707.53,0.00020273,2]
[370383710,1751988651143,-694.91,0.00020273,2]
[370383711,1751988651153,-460.0,0.00020273,2]
[370383712,1751988651163,-169.1087624,0.00020273,2]
[370383713,1751988651172,-470.51073333,0.00020273,2]
[370383714,1751988651182,-2901.31,0.00020273,2]
[370383715,1751988651192,-472.29,0.00020273,2]
[370383716,1751988651201,-460.0,0.00020273,2]
[370383717,1751988651211,-605.75,0.00020273,2]
[370383718,1751988651221,-460.0,0.00020273,2]
[370383719,1751988651231,-460.0,0.00020273,2]
[370383720,1751988651240,-1269.5,0.00020273,2]
[370383721,1751988651250,-350.0,0.00020273,2]
[370383722,1751988651260,-460.0,0.00020273,2]
[370383723,1751988651270,-5408.87,0.00020273,2]
[370383724,1751988651280,-4052.16,0.00020273,2]
[370383725,1751988651289,-723.51,0.00020273,2]
[370383726,1751988651299,-460.0,0.00020273,2]
[370383727,1751988651309,-460.0,0.00020273,2]
[370383728,1751988651318,-460.0,0.00020273,2]
[370383729,1751988651328,-2441.44,0.00020273,2]
[370383730,1751988651338,-1137.52,0.00020273,2]
[370383731,1751988651348,-460.0,0.00020273,2]
[370383732,1751988651357,-681.91,0.00020273,2]
[370383733,1751988651367,-510.15,0.00020273,2]
[370383734,1751988651376,-776.58,0.00020273,2]
[370383735,1751988651386,-1009.01,0.00020273,2]
[370383736,1751988651396,-460.0,0.00020273,2]
[370383737,1751988651407,-1454.34,0.00020273,2]
[370383738,1751988651416,-677.21,0.00020273,2]
[370383739,1751988651426,-2559.5,0.00020273,2]
[370383740,1751988651436,-960.91,0.00020273,2]
[370383741,1751988651447,-510.04,0.00020273,2]
[370383742,1751988651457,-460.0,0.00020273,2]
[370383743,1751988651467,-3140.82,0.00020273,2]
[370383744,1751988651476,-160.0,0.00020278,2]
[370383745,1751988651486,-160.0,0.00020278,2]
[370383746,1751988651495,-160.0,0.00020278,2]
[370383747,1751988651505,-160.0,0.00020278,2]
[370383748,1751988651514,-160.0,0.00020278,2]
[370383749,1751988651524,-160.0,0.00020278,2]
[370383750,1751988651536,-500.0,0.0002029,2]
[370383751,1751988651546,-214.10276668,0.00020348,3]
[370383752,1751988651556,-6000.12112762,0.00020348,3]
[370383753,1751988651566,-160.0,0.00020348,3]
[370383754,1751988651575,-12586.7184932,0.00020348,3]
[370383755,1751988651585,-848.40570879,0.00020348,3]
[370383756,1751988651595,-500.0,0.00020384,2]
[370383757,1751988651604,-420.0,0.00020388,2]
[370383758,1751988651614,-151.0,0.000204,4]
[370383759,1751988651624,-500.0,0.00020477,2]
[370383760,1751988651634,-748.96990294,0.00020537,2]
[370383761,1751988651644,-151.0,0.00020547,2]
[370383762,1751988651654,-151.0,0.00020547,2]
[370383763,1751988651664,-460.0,0.00020547,2]
[370383764,1751988651674,-322.79155818,0.00020547,2]
[370383765,1751988651684,-460.0,0.00020547,2]
[370383766,1751988651695,-1027.44,0.00020547,2]
[370383767,1751988651704,-460.0,0.00020547,2]
[370383768,1751988651714,-460.0,0.00020547,2]
[370383769,1751988651724,-500.0,0.00020547,2]
[370383770,1751988651734,-460.0,0.00020547,2]
[370383771,1751988651744,-460.0,0.00020547,2]
[370383772,1751988651753,-863.55,0.00020547,2]
[370383773,1751988651764,-460.0,0.00020547,2]
[370383774,1751988651773,-460.0,0.00020547,2]
[370383775,1751988651783,-592.45,0.00020547,2]
[370383776,1751988651793,-460.0,0.00020547,2]
[370383777,1751988651803,-512.5,0.00020547,2]
[370383778,1751988651812,-941.19,0.00020547,2]
[370383779,1751988651822,-460.0,0.00020547,2]
[370383780,1751988651831,-460.0,0.00020547,2]
[370383781,1751988651841,-460.0,0.00020547,2]
[370383782,1751988651851,-460.0,0.00020547,2]
[370383783,1751988651860,-460.0,0.00020547,2]
[370383784,1751988651870,-221.64365544,0.00020547,2]
[370383785,1751988651880,-460.0,0.00020547,2]
[370383786,1751988651890,-898.19,0.00020547,2]
[370383787,1751988651900,-468.58,0.00020547,2]
[370383788,1751988651909,-811.62,0.00020547,2]
[370383789,1751988651920,-862.49,0.00020547,2]
[370383790,1751988651930,-460.0,0.00020547,2]
[370383791,1751988651940,-510.43,0.00020547,2]
[370383792,1751988651951,-460.0,0.00020547,2]
[370383793,1751988651961,-1555.07,0.00020547,2]
[370383794,1751988651970,-460.0,0.00020547,2]
[370383795,1751988651980,-460.0,0.00020547,2]
[370383796,1751988651990,-855.52,0.00020547,2]
[370383797,1751988652001,-460.0,0.00020547,2]
[370383798,1751988652011,-545.34,0.00020547,2]
[370383799,1751988652021,-633.51,0.00020547,2]
[370383800,1751988652031,-460.0,0.00020547,2]
[370383801,1751988652041,-1397.65,0.00020547,2]